Workbook

Sheet Instructions and Summary
A1: Budget Justification Workbook Template for SF-424A Budget | G1: June 2011
A2: Instructions and Summary
A3: Control Number: | D3: Date of Submission:
A4: Award Recipient: | D4: Submitted by: | G4: (Recipient or Subrecipient)
A6: Please read the instructions on each page before starting. If you have any questions, please submit to ARPA-E-CO@hq.doe.gov. It will save you time!
A7: On this form, provide detailed support for the estimated total project costs identified on the SF-424A form (Budget). X • The totals in each budget category and the Total Project Cost must be the same in the SF-424A and the Budget Justification Workbook. • The Prime Recipient must complete the Budget Justification Workbook. In addition, each Subrecipient incurring greater than or equal to 10% of the Total Project Cost must complete separate tabs in the Budget Justification Workbook to justify its proposed budget. The tabs must be included in the Prime Recipient’s Budget Justification Workbook. The term “tab” refers to a worksheet within the Budget Justification Workbook. Each tab may be found and accessed at the bottom of the Workbook page. • The total budget presented in the Budget Justification Workbook and the SF-424A must include both Federal (ARPA-E) and Non-Federal (cost share) expenditures, the sum of which equals the Total Project Cost proposed by the Applicant. All costs, whether paid with Federal funding or by the Project Team, must be justified. • For costs in each budget category in the SF-424A, complete the corresponding worksheet in this Workbook. The totals in each budget category and the Total Project Cost must be the same in the SF-424A and the Budget Justification Workbook. • All costs incurred by the Prime Recipient’s Subrecipients, vendors, contractors, consultants and Federally Funded Research and Development Centers (FFRDCs), must be entered only in section f. Contractual. All other sections are for the costs of the Prime Recipient only. • No individual may be paid more than $200,000 per year under an ARPA-E funding agreement. • All expenditures must be allowable, allocable, and reasonable in accordance with the applicable Federal cost principles.
A9: SUMMARY OF BUDGET CATEGORY COSTS PROPOSED (Note: The values in this summary table are from entries made in each budget category sheet.)
A10: CATEGORY | B10: Year 1 | C10: Year 2 | D10: Year 3 | E10: Total Costs | F10: Project Costs % | G10: Comments (Add comments as needed)
A11: a. Personnel | B11: ='a. Personnel'!E65 -> 0 | C11: ='a. Personnel'!H65 -> 0 | D11: ='a. Personnel'!K65 -> 0 | E11: =SUM(B11:D11) -> 0 | F11: =E11/$E$24 -> 
A12: b. Fringe Benefits | B12: ='b. Fringe'!D6 -> 0 | C12: ='b. Fringe'!E6 -> 0 | D12: ='b. Fringe'!F6 -> 0 | E12: 0 | F12: =E12/$E$24 -> 
A13: c. Travel | B13: ='c. Travel'!G24 -> 0 | C13: ='c. Travel'!G41 -> 0 | D13: ='c. Travel'!G58 -> 0 | E13: 0
A14: d. Equipment | B14: ='d. Equipment'!D17 -> 0 | C14: ='d. Equipment'!D28 -> 0 | D14: ='d. Equipment'!D41 -> 0 | E14: 0
A15: e. Supplies | B15: ='e. Supplies'!D18 -> 0 | C15: ='e. Supplies'!D31 -> 0 | D15: ='e. Supplies'!D44 -> 0 | E15: 0
A16: f. Contractual
A17: Sub-recipient | B17: ='f. Contractual'!C15 -> 0 | C17: ='f. Contractual'!D15 -> 0 | D17: ='f. Contractual'!E15 -> 0 | E17: =SUM(B17:D17) -> 0 | F17: =E17/$E$24 -> 
A18: FFRDC | B18: ='f. Contractual'!C32 -> 0 | C18: ='f. Contractual'!D32 -> 0 | D18: ='f. Contractual'!E32 -> 0 | E18: 0
A19: Vendor | B19: ='f. Contractual'!C26 -> 0 | C19: ='f. Contractual'!D26 -> 0 | D19: ='f. Contractual'!E26 -> 0 | E19: 0
A20: Total Contractual | B20: =SUM(B17:B19) -> 0 | C20: =SUM(C17:C19) -> 0 | D20: =SUM(D17:D19) -> 0 | E20: 0
A21: g. Construction | B21: ='g. Construction'!B16 -> 0 | C21: ='g. Construction'!B23 -> 0 | D21: ='g. Construction'!B30 -> 0 | E21: 0
A22: h. Other Direct Costs | B22: ='h. Other'!B13 -> 0 | C22: ='h. Other'!B19 -> 0 | D22: ='h. Other'!B25 -> 0 | E22: =SUM(B22:D22) -> 0
A23: i. Indirect Charges | B23: ='i. Indirect'!D5 -> 0 | C23: ='i. Indirect'!E5 -> 0 | D23: ='i. Indirect'!F5 -> 0 | E23: =SUM(B23:D23) -> 0
A24: Total Project Costs | B24: =SUM(B11:B23)-B20 -> 0 | C24: =SUM(C11:C23)-C20 -> 0 | D24: =SUM(D11:D23)-D20 -> 0 | E24: =SUM(E11:E23)-E20 -> 0 | F24: =SUM(F11:F23)-F20 -> 
A26: Additional Explanations/Comments (as necessary)

Sheet a. Personnel
A1: Budget Justification for SF 424A Budget | L1: June 2011
A2: a. Personnel
A3: PLEASE READ!!! List personnel costs solely for employees of the entity completing this workbook (award recipient or subrecipient). All other personnel costs (of subrecipients or other contractual efforts of the entity preparing this) must be included under f., Contractual. This includes all consultants and FFRDCs. Identify positions to be supported. Key personnel should be identified by title. All other personnel should be identified either by title or a group category. State the amounts of time (e.g., hours ) to be expended, the base pay rate or composite base rate, total direct personnel compensation and identify the rate basis (e.g., actual salary, labor distribution report, technical estimate, state civil service rates, etc.). If composite rates are proposed for a particular position or group category, please provide a list of the proposed personnel and rates/hours used to compute the composite rates in the “Additional explanation/comments” box, as applicable. If you are proposing escalation rates for the labor rates, please explain in the “Additional explanation/comments” Add rows as needed. Formulas/calculations will need to be entered by the preparer of this form. Please enter formulas as shown in the example.
A6: Task # and Title | B6: Position Title | C6: Year 1 | F6: Year 2 | I6: Year 3 | L6: Project Total Hours | M6: Project Total Dollars | N6: Rate Basis
C7: Time (Hours) | D7: Pay Rate ($/Hr) | E7: Total Budget Period 1 | F7: Time (Hours) | G7: Pay Rate ($/Hr) | H7: Total Budget Period 2 | I7: Time (Hours) | J7: Pay Rate ($/Hr) | K7: Total Budget Period 3
A8: 1. Generation 2A Receiver Design | C8: =SUM(C9:C11) -> 7960 | E8: =SUM(E9:E11) -> 372400 | F8: =SUM(F9:F11) -> 600 | H8: =SUM(H9:H11) -> 26000 | I8: =SUM(I9:I11) -> 800 | K8: =SUM(K9:K11) -> 34000 | L8: =C8+F8+I8 -> 9360 | M8: =E8+H8+K8 -> 432400 | N8: Actual Salary
A9: EXAMPLE | B9: Sr. Engineer | C9: 2000 | D9: 85 | E9: =C9*D9 -> 170000 | F9: 200 | G9: 50 | H9: =F9*G9 -> 10000 | I9: 200 | J9: 50 | K9: =I9*J9 -> 10000 | L9: =C9+F9+I9 -> 2400 | M9: =E9+H9+K9 -> 190000 | N9: Actual Salary
A10: ONLY!!! | B10: Electrical engineers | C10: 4160 | D10: 40 | E10: =C10*D10 -> 166400 | F10: 400 | G10: 40 | H10: =F10*G10 -> 16000 | I10: 600 | J10: 40 | K10: =I10*J10 -> 24000 | L10: =C10+F10+I10 -> 5160 | M10: =E10+H10+K10 -> 206400 | N10: Actual Salary
B11: Technician | C11: 1800 | D11: 20 | E11: =C11*D11 -> 36000 | F11: 0 | G11: 0 | H11: =F11*G11 -> 0 | I11: 0 | J11: 0 | K11: =I11*J11 -> 0 | L11: =C11+F11+I11 -> 1800 | M11: =E11+H11+K11 -> 36000 | N11: Actual Salary
A12: 1. (Task 1 Title)
A17: 2. (Task 2 Title)
A20: 3. (Task 3 Title)
A21: etc.
B65: Total Personnel Costs | C65: =SUM(C12:C64) -> 0 | E65: =SUM(E12:E64) -> 0 | F65: =SUM(F12:F64) -> 0 | H65: =SUM(H12:H64) -> 0 | I65: =SUM(I12:I64) -> 0 | K65: =SUM(K12:K64) -> 0 | L65: =J65+G65+D65 -> 0 | M65: =K65+H65+E65 -> 0
A67: Additional Explanations/Comments (as necessary)

Sheet b. Fringe
A1: Budget Justification for SF 424A Budget | I1: June 2011
A2: b. Fringe Benefits
D4: Year 1 | E4: Year 2 | F4: Year 3 | G4: Total
A5: Rate applied: | D5: 0 | E5: 0 | F5: 0
A6: Total fringe requested: | G6: =SUM(D6:F6) -> 0
A9: Applicants are required to indicate if they have a Federally approved fringe benefit rate agreement.
A10: If reimbursement for fringe benefits is requested, a Federally approved fringe benefit rate agreement, or a fringe benefit rate proposal is required in accordance with the instructions below. The fringe benefit rate proposal must be accepted by ARPA-E for estimating purposes. Calculate the fringe rate/dollars and enter this information above.
B11: A fringe benefit rate has been negotiated with, or approved by, a Federal government agency. A copy of the latest rate agreement is included with the Full Application (*see information below).
B13: A fringe benefit rate has not been negotiated with, or approved by, a Federal agency (*see information below).
B14: If an Applicant is selected for award negotiations and does not have a Federally approved fringe benefit rate agreement, then the Applicant is required to submit an Indirect Rate Proposal to the ARPA-E Contracting Offficer. A template for Indirect Rate Proposals is available at http://arpa-e.energy.gov/FundingAgreements/Overview.aspx. The Applicant must provide this information to the ARPA-E Contracting Officer at ARPA-E-CO@hq.doe.gov within 2 days after the receiving the award notification. In the subject line of the email, please state “Rate Proposal” and include the Applicant’s name, FOA name and number, and application control number.
A17: Additional explanation/comments (as necessary)
A18: *IMPORTANT: In the space provided below (or as an attachment) provide a complete explanation and the full calculations used to derive the total fringe costs. If the total fringe costs are a cumulative amount of more than one calculation or rate application, the explanation and calculations should identify all rates used, along with the base they were applied to (and how the base was derived), and a total for each (along with grand total). Do not average the rates and apply them to get one fringe cost percentage. NOTE: You must apply the fringe benefit rate to both the Federal Share and Recipient Cost Share.

Sheet c. Travel
A1: Budget Justification for SF 424A Budget | H1: June 2011
A2: c. Travel
A3: PLEASE READ!!! Provide travel detail as requested below, identifying total Foreign and Domestic Travel as separate items. "Purpose of travel" are items such as professional conference, DOE sponsored meeting, project management meeting, etc. The Basis for Estimating Costs are items such as past trips, current quotations, Federal Travel Regulations, etc. All listed travel must be necessary for the performance of the objectives in the Statement of Project Objectives and accompanying Technical Milestones and Deliverables. The Prime Recipient must budget for one visit per year with the ARPA-E Program Director in Washington, DC. Add rows as needed. If rows are added, formulas/calculations may need to be adjusted by the preparer.
A5: Purpose of travel | B5: No. of Travelers | C5: Depart From (not required for domestic travel) | D5: Destination (not required for domestic travel) | E5: No. of Days | F5: Cost per Traveler | G5: Cost per Trip | H5: Basis for Estimating Costs
A6: Year 1
A7: Domestic Travel
A8: EXAMPLE ONLY!!! Visit to PV cell mfr. to set up vendor agreement | B8: 2 | E8: 2 | F8: 650 | G8: =F8*B8 -> 1300 | H8: Internet prices
G9: 0
G10: 0
G11: 0
G12: 0
G13: 0
G14: 0
G15: 0
G16: 0
A17: Domestic Travel subtotal | G17: =SUM(G9:G16) -> 0
A18: International Travel
G19: =F19*B19 -> 0
G20: =F20*B20 -> 0
G21: =F21*B21 -> 0
G22: =F22*B22 -> 0
A23: International Travel subtotal | G23: =SUM(G19:G22) -> 0
A24: Year 1 Total | G24: =G17+G23 -> 0
A25: Year 2
A26: Domestic Travel
G27: =F27*B27 -> 0
G28: 0
G30: 0
G31: 0
G32: 0
G33: 0
A34: Domestic Travel subtotal | G34: =SUM(G27:G33) -> 0
A35: International Travel
G36: =F36*B36 -> 0
G37: =F37*B37 -> 0
G38: =F38*B38 -> 0
G39: =F39*B39 -> 0
A40: International Travel subtotal | G40: =SUM(G36:G39) -> 0
A41: Year 2 Total | G41: =G34+G40 -> 0
A42: Year 3
A43: Domestic Travel
G44: =F44*B44 -> 0
G46: 0
G47: 0
G48: 0
G49: 0
G50: 0
A51: Domestic Travel subtotal | G51: =SUM(G44:G50) -> 0
A52: International Travel
G53: =F53*B53 -> 0
G54: =F54*B54 -> 0
G55: =F55*B55 -> 0
G56: =F56*B56 -> 0
A57: International Travel subtotal | G57: =SUM(G53:G56) -> 0
A58: Year 3 Total | G58: =G51+G57 -> 0
A59: PROJECT TOTAL | G59: =G24+G41+G58 -> 0
A61: Additional Explanations/Comments (as necessary)

Sheet d. Equipment
A1: Budget Justification for SF 424A Budget | F1: June 2011
A2: d. Equipment
A3: PLEASE READ!!! "Equipment" is generally defined as an item with an acquisition cost greater than $5,000 and a useful life expectancy of more than one year. Further definitions can be found at 10 C.F.R. 600. List all proposed equipment below, providing a basis of cost such as vendor quotes, catalog prices, prior invoices, etc., and briefly justify its need as it applies to the Statement of Project Objectives and accompanying Technical Milestones and Deliverables. If it is existing equipment, and the value of its contribution to the project budget is being shown as cost share, provide logical support for the estimated value shown. If it is new equipment which will retain a useful life upon completion of the project, provide logical support for the estimated value shown. For equipment over $50,000 in price, also include a copy of the associated vendor quote or catalog price list. Add rows as needed. If rows are added, formulas/calculations may need to be adjusted by the preparer.
A5: Equipment Item | B5: Qty | C5: Unit Cost | D5: Total Cost | E5: Basis of Cost | F5: Justification of need
A6: Year 1
A7: EXAMPLE ONLY!!! Thermal shock chamber | B7: 2 | C7: 20000 | D7: =B7*C7 -> 40000 | E7: Vendor Quote | F7: Reliability testing of PV modules- Task 4.3
D8: =B8*C8 -> 0
D9: 0
D10: 0
D11: 0
D12: 0
D13: 0
D14: 0
D15: 0
D16: 0
A17: Year 1 Total | D17: =SUM(D8:D16) -> 0
A18: Year 2
D19: =B19*C19 -> 0
D20: =B20*C20 -> 0
D21: 0
D22: 0
D23: 0
D24: 0
D25: 0
D26: 0
D27: 0
A28: Year 2 Total | D28: =SUM(D19:D27) -> 0
A29: Year 3
D30: =B30*C30 -> 0
D31: =B31*C31 -> 0
D32: 0
D33: 0
D34: 0
D35: 0
D36: 0
D37: 0
D38: 0
D39: 0
D40: 0
A41: Year 3 Total | D41: =SUM(D30:D40) -> 0
A42: PROJECT TOTAL | D42: =D17+D28+D41 -> 0
A44: Additional Explanations/Comments (as necessary)

Sheet e. Supplies
A1: Budget Justification for SF 424A Budget | F1: June 2011
A2: e. Supplies
A3: PLEASE READ!!! "Supplies" are generally defined as an item with an acquisition cost of $5,000 or less and a useful life expectancy of less than one year. Supplies are generally consumed during the project performance. Further definitions can be found at 10 C.F.R. 600. List all proposed supplies below, providing a bases of cost such as vendor quotes, catalog prices, prior invoices, etc., and briefly justifying the need for the Supplies as they apply to the Statement of Project Objectives and accompanying Technical Milestones and Deliverables. Note that Supply items must be direct costs to the project at this budget category, and not duplicative of supply costs included in the indirect pool that is the basis of the indirect rate applied for this project. Add rows as needed. If rows are added, formulas/calculations may need to be adjusted by the preparer.
A5: General Category of Supplies | B5: Qty | C5: Unit Cost | D5: Total Cost | E5: Basis of Cost | F5: Justification of need
A6: Year 1
A7: EXAMPLE ONLY!!! Wireless DAS components | B7: 10 | C7: 360 | D7: 3600 | E7: Catalog price | F7: For Alpha prototype - Task 2.4
D8: =B8*C8 -> 0
D9: =B9*C9 -> 0
D10: 0
D11: 0
D12: 0
D13: 0
D14: 0
D15: 0
D16: 0
D17: 0
A18: Year 1 Total | D18: =SUM(D8:D17) -> 0
A19: Year 2
D20: =B20*C20 -> 0
D21: =B21*C21 -> 0
D22: =B22*C22 -> 0
D23: 0
D24: 0
D25: 0
D26: 0
D27: 0
D28: 0
D29: 0
D30: 0
A31: Year 2 Total | D31: =SUM(D20:D30) -> 0
A32: Year 3
D33: =B33*C33 -> 0
D34: =B34*C34 -> 0
D35: =B35*C35 -> 0
D36: 0
D37: 0
D38: 0
D39: 0
D40: 0
D41: 0
D42: 0
D43: 0
A44: Year 3 Total | D44: =SUM(D33:D43) -> 0
A45: PROJECT TOTAL | D45: =D44+D31+D18 -> 0
A47: Additional Explanations/Comments (as necessary)

Sheet f. Contractual
A1: Budget Justification for SF 424A Budget | D1: June 2011
A2: f. Contractual
A3: PLEASE READ!!! The entity completing this form must provide all costs related to subrecipients, vendors, contractors, consultants and FFRDC partners in the applicable boxes below. Subrecipients (partners, subawardees): Each Subrecipient incurring greater than or equal to 10% of the Total Project Costs must complete a separate SF-424A and separate Budget Justification worksheets to justify its proposed budget. The Subrecipient’s SF-424A must be inserted as additional sheets within the Prime Recipient's SF-424A. The Subrecipient’s Budget Justification worksheets must be inserted as additional tabs within the Prime Recipient's Budget Justification Workbook. The Subrecipients’ SF-424As and Budget Justification Workbooks may be completed by either the Subrecipients themselves or by the preparer of this workbook. The budget totals on the Subrecipients' workbooks must match the Subrecipient entries described below. Subrecipients incurring less than 10% of the Total Project Costs are not required to complete a separate SF-424A and Budget Justification workbook. However, such Subrecipients are required to provide supporting documentation to justify their proposed budgets. At a minimum, the supporting documentation must include a sufficient basis for the estimated costs for ARPA-E evaluation. Please also refer to instructions in Tabs B and I regarding Fringe Benefit and Indirect Rate Submissions.
A4: Vendors (includes contractors and consultants): List all vendors, contractors and consultants supplying commercial supplies or services used to support the project. The support to justify vendor costs (in any amount) should provide the purpose for the products or services and a basis of the estimated costs that is considered sufficient for ARPA-E evaluation. Federal Research and Development Centers (FFRDCs): Each FFRDC incurring greater than or equal to 10% of the Total Project Costs must complete a separate SF-424A and separate Budget Justification worksheets to justify its proposed budget. The FFRDC’s SF-424A must be inserted as additional sheets within the Prime Recipient's SF-424A. The FFRDC’s Budget Justification worksheets must be inserted as additional tabs within the Prime Recipient's Budget Justification Workbook. The FFRDC workbooks may be completed by either the Subrecipients themselves or by the preparer of this workbook. The budget totals on the Subrecipient's SF-424A and Budget Justification Workbook must match the Subrecipient entries described below. DOE/NNSA FFRDCs are also required to submit a Field Work Proposal in accordance with the instructions in DOE O 412.1, “Work Authorization System” (http://management.energy.gov/business_doe/business_forms.htm) in the Technical Volume of the Full Application. FFRDCs incurring less than 10% of the Total Project Cost are not required to complete a separate SF-424A and Budget Justification Workbook. However, FFRDCs are required to provide supporting documentation to justify their proposed budgets. At a minimum, the supporting documentation must include a sufficient basis for the estimated costs for ARPA-E evaluation. All DOE/NNSA FFRDCs are also required to submit a Field Work Proposal. Please also refer to instructions in Tabs B and I regarding Fringe Benefit and Indirect Rate Submissions. Add rows as needed. If rows are added, formulas/calculations may need to be adjusted by the preparer.
A5: Sub-Recipient Name/Organization | B5: Purpose/Tasks in SOPO | C5: Year 1 Costs | D5: Year 2 Costs | E5: Year 3 Costs | F5: Project Total
A6: EXAMPLE ONLY!!! XYZ Corp. | B6: Partner to develop optimal fresnel lens for Gen 2 product - Task 2.4 | C6: 48000 | D6: 32000 | E6: 16000 | F6: =SUM(C6:E6) -> 96000 | G6: =IF(F6>100000,"Separate budget forms required for this sub-recipient!", " ") -> 
F7: =SUM(C7:E7) -> 0 | G7: =IF(F7>=100000,"Separate budget forms required for this sub-recipient!", " ") -> 
F8: 0 | G8: =IF(F8>100000,"Separate budget forms required for this sub-recipient!", " ") -> 
F9: 0
F10: 0
F11: 0
F12: 0
F13: 0
F14: 0
B15: Sub-total | C15: =SUM(C7:C14) -> 0 | D15: =SUM(D7:D14) -> 0 | E15: =SUM(E7:E13) -> 0 | F15: =SUM(F7:F14) -> 0
A17: Vendor Name/Organization | B17: Product or Service, Purpose/Need and Basis of Cost (Provide additional support at bottom of page as needed) | C17: Year 1 Costs | D17: Year 2 Costs | E17: Year 3 Costs | F17: Project Total
A18: EXAMPLE ONLY!!! ABC Corp. | B18: Vendor for developing custom robotics to perform lens inspection, alignment, and placement (Task 4 ). Required for expanding CPV module mfg. capacity. Cost is from competitive quotes. | C18: 32900 | D18: 86500 | F18: =SUM(C18:E18) -> 119400
F19: =SUM(C19:E19) -> 0
F20: 0
F21: 0
F22: 0
F23: 0
F24: 0
F25: 0
C26: =SUM(C19:C25) -> 0 | D26: =SUM(D19:D25) -> 0 | E26: =SUM(E19:E25) -> 0 | F26: =SUM(F19:F25) -> 0
A28: FFRDC Name/Organization | B28: Purpose | C28: Year 1 Costs | D28: Year 2 Costs | E28: Year 3 Costs | F28: Project Total
F29: =SUM(C29:E29) -> 0
F30: =SUM(C30:E30) -> 0
F31: =SUM(C31:E31) -> 0
C32: =SUM(C29:C31) -> 0 | D32: =SUM(D29:D31) -> 0 | E32: =SUM(E29:E31) -> 0 | F32: =SUM(C32:E32) -> 0
A34: Total Contractual | C34: =C26+C32+C15 -> 0 | D34: =D26+D32+D15 -> 0 | E34: =E26+E32+E15 -> 0 | F34: =F26+F32+F15 -> 0
A36: AdditionalExplanations/Comments (as necessary)

Sheet g. Construction
A1: Budget Justification for SF 424A Budget | D1: June 2011
A2: g. Construction
A3: PLEASE READ!!! "Construction" for the purpose of budgeting, is defined as all types of work done on a particular building, including erecting, altering, or remodeling. Construction conducted by the award recipient is entered on this page. Any construction work that is performed by a vendor or subrecipient to the award recipient should be entered under f. Contractual. List all proposed construction below, providing a basis of cost such as engineering estimates, prior construction, etc., and briefly justify its need as it applies to the Statement of Project Objectives and accompanying Technical Milestones and Deliverabless being performed. Add rows as needed. If rows are added, formulas/calculations may need to be adjusted by the preparer.
A5: Overall description of construction actiivities:
A6: Example Only!!! - Build wind turbine platform
A8: General Description | B8: Cost | C8: Basis of Cost | D8: Justification of need
A9: Year 1
A10: Three days of excavation for platform site EXAMPLE ONLY!!! | B10: 28000 | C10: Engineering estimate | D10: Site must be prepared for construction of platform.
A16: Year 1 Total | B16: =SUM(B11:B15) -> 0
A17: Year 2
A23: Year 2 Total | B23: =SUM(B18:B22) -> 0
A24: Year 3
A30: Year 3 Total | B30: =SUM(B25:B29) -> 0
A31: PROJECT TOTAL | B31: =-B30+B23+B16 -> 0
A33: Additional Explanations/Comments (as necessary)

Sheet h. Other
A1: Budget Justification for SF 424A Budget | D1: June 2011
A2: h. Other Direct Costs
A3: PLEASE READ!!! Applicants must provide and justify proposed costs related to Other Direct Costs for each year of the entire budget period. Other Direct Costs are direct cost items required for the project which do not fit clearly into other categories, and are not included in the indirect pool for which the indirect rate is being applied to this project. Other Direct Costs include Technology Transfer and Outreach (TT&O) activities. Examples of TT&O activities that are allowable under Federal costs principles are provided in Section IV.G.8 of the FOA. Applicants must provide a basis of cost (e.g., vendor quotes, prior purchases of similar or like items, published price list, etc.). Note for TT&O Activites: Every Project Team is required to spend at least 5% of ARPA-E funding on TT&O activities to promote and further the development and deployment of ARPA-E-funded technologies. All budget activities must relate to achieving specific objectives, Technical Milestones and Deliverables outlined in the Statement of Project Objectives. Applicants must list TT&O costs with a clear description of what activities are to take place (e.g. travel to the Annual ARPA-E Innovation Summit, work devoted to a commercialization plan, etc.). Only TT&O costs that relate to a specific technology funded by ARPA-E will be allowed, if the costs are allowable in accordance with Federal cost principles. For TT&O activities aimed at advancing a portfolio of technologies and/or products owned by the Recipient or Project Partner, only the portion of costs specifically attributable to advancing the ARPA-E funded technology will be reimbursed. Applicants are required to certify in the Full Application that they have met the 5% requirement for TT&O expenditures in their SF-424A and Budget Justification unless they submit an accompanying waiver request. Applicants may seek a waiver of the TT&O requirement in whole or in part by including an explicit request in their Full Application. In their request, Applicants must describe the proposed technology’s stage of development (i.e., early-stage or late-stage) with reference to Technology Readiness Levels (TRLs). In addition, Applicants must describe in detail why the TT&O requirement should not be applied to their project or why they are proposing less than the required 5%. Note for Patent Costs: ARPA-E will reimburse up to $15,000 in expenditures incurred under the funding agreement for costs and fees relating to the filing and prosecution of U.S. patent applications on subject inventions disclosed to ARPA-E and DOE in accordance with Attachment 2 to the funding agreement (http://arpa-e.energy.gov/FundingAgreements/CooperativeAgreements.aspx). Prime Recipients may use costs and fees in excess of $15,000 to meet their cost share obligations under the funding agreement. ARPA-E will not reimburse any costs and fees relating to the filing and prosecution of foreign patent applications on subject inventions disclosed to ARPA-E and DOE in accordance with Attachment 2 to the funding agreement. However, Prime Recipients may use such costs and fees to meet their cost share obligations. For examples of allowable patent costs, please see Section IV.G.3 of the FOA. Add rows as needed. If rows are added, formulas/calculations may need to be adjusted by the preparer.
A4: General description | B4: Cost | C4: Basis of Cost | D4: Justification of need
A5: Year 1
A6: EXAMPLE ONLY!!! Grad student tuition | B6: 16000 | C6: Established UCD costs | D6: Support of graduate students working on project
A7: EXAMPLE ONLY!!! Contractual | B7: 10000 | C7: Vendor Quote | D7: Personnel costs to develop commercialization plans
A8: EXAMPLE ONLY!!! Conferences | B8: 4000 | C8: Travel & Conference Expenses | D8: ARPA-E Energy Summit travel and registration
A13: Year 1 Total | B13: =SUM(B9:B12) -> 0
A14: Year 2
A19: Year 2 Total | B19: =SUM(B15:B18) -> 0
A20: Year 3
A25: Year 3 Total | B25: =SUM(B21:B24) -> 0
A26: PROJECT TOTAL | B26: =B25+B19+B13 -> 0
A28: Additional Explanations/Comments (as necessary)

Sheet i. Indirect
A1: Budget Justification for SF 424A Budget | H1: June 2011
A2: i. Indirect Costs
D3: Year 1 | E3: Year 2 | F3: Year 3 | G3: Total
A4: Rate applied: | D4: 0 | E4: 0 | F4: 0
A5: Total indirect costs requested: | G5: =SUM(D5:F5) -> 0
A8: Applicants are required to indicate if they have a Federally approved indirect rate agreement.
A9: If reimbursement for indirect costs is requested, a federally approved indirect rate agreement , or an indirect rate proposal is required in accordance with the instructions below. The indirect rate proposal must be accepted by ARPA-E for estimating purposes. Calculate the indirect rate/dollars and enter this information above.
B10: An indirect rate has been negotiated with, or approved by, a Federal government agency. A copy of the latest rate agreement is included with the Full Application (*see information below).
B12: An indirect rate agreement has not been negotiated with, or approved by, a Federal government agency (*see information below).
B13: If an Applicant is selected for award negotiations and does not have a Federally approved indirect rate agreement, then the Applicant is required to submit an Indirect Rate Proposal to the ARPA-E Contracting Offficer. A template for Indirect Rate Proposal is available at http://arpa-e.energy.gov/FundingAgreements/Overview.aspx. The Applicant must provide this information to the ARPA-E Contracting Officer at ARPA-E-CO@hq.doe.gov within 2 days after the receiving the award notification. In the subject line of the email, please state “Rate Proposal” and include the Applicant’s name, FOA name and number, and application control number.
A17: Additional Explanations/Comments (as necessary)
A18: *IMPORTANT: In the space provided below (or as an attachment) provide a complete explanation and the full calculations used to derive the total indirect costs. If the total indirect costs are a cumulative amount of more than one calculation or rate application, the explanation and calculations should identify all rates used, along with the base they were applied to (and how the base was derived), and a total for each (along with grand total). Do not average the rates and apply them to get one indirect cost percentage. NOTE: You must apply the indirect rate to both the Federal Share and Recipient Cost Share.

Sheet Cost Share
A1: Budget Justification for SF 424A Budget | E1: June 2011
A2: Cost Share
A3: PLEASE READ!!! Applicants must provide and justify proposed costs related to Cost Share for each year of the entire budget period. Applicants must provide a detailed explanation of the cash or cash value of all cost share proposed for the project. Please refer to Section III.B of the FOA for guidance on allowable cost share contributions. Applicants selected for award negotiations must provide cost share commitment letters, as described in Section VI.B.3 of the FOA. Project teams are not permitted to receive fees or profits under ARPA-E awards. All monies must be spent on activities or equipment directly related to meeting the objectives in the Statement of Project Objectives and accompanying Technical Milestones and Deliverables. Additionally, foregone fee or profit by any member of the proposed Project Team may not be considered cost sharing under any resulting award. Add rows as needed. If rows are added, formulas/calculations may need to be adjusted by the preparer.
A5: Organization/Source | B5: Type (cash or other) | C5: Cost Share Item | D5: Year 1 Cost Share | E5: Year 2 Cost Share | F5: Year 3 Cost Share | G5: Total Project Cost Share
A6: ABC Company EXAMPLE ONLY!!! | B6: Cash | C6: Project partner ABC Company will provide 40 PV modules for product development at 50% off the of the retail price of $680 | D6: 13600 | G6: =SUM(D6:F6) -> 13600
G7: 0
G8: 0
G9: 0
G10: 0
G11: 0
G12: 0
G13: 0
G14: 0
G15: 0
G16: 0
C17: Totals | D17: =SUM(D7:D16) -> 0 | E17: =SUM(E6:E16) -> 0 | F17: =SUM(F6:F16) -> 0 | G17: =SUM(G7:G16) -> 0
A19: Total Project Cost: | C19: ='Instructions and Summary'!E24 -> 0 | D19: Cost Share Percent of Award: | G19: =G17/C19 -> 
A21: Additional Explanations/Comments (as necessary)

Sheet SF-424A (hidden)
A1: Applicant Name: | E1: Award Number:
A2: Budget Information - Non Construction Programs
A3: OMB Approval No. 0348-0044
A4: Section A - Budget Summary
B5: Grant Program Function or Activity | C5: Catalog of Federal Domestic Assistance Number | D5: Estimated Unobligated Funds | F5: New or Revised Budget
D6: Federal | E6: Non-Federal | F6: Federal | G6: Non-Federal | H6: Total
B7: (a) | C7: (b) | D7: (c ) | E7: (d) | F7: (e) | G7: (f) | H7: (g)
A8: 1. | B8: Budget period 1 | F8: =D26-G8 -> 0 | G8: ='Cost Share'!D17 -> 0 | H8: =SUM(D8:G8) -> 0
A9: 2. | B9: Budget period 2 | F9: =E26-G9 -> 0 | G9: ='Cost Share'!E17 -> 0 | H9: =SUM(D9:G9) -> 0
A10: 3. | B10: Budget period 3 | F10: =F26-'Cost Share'!F17 -> 0 | G10: ='Cost Share'!F17 -> 0 | H10: =SUM(D10:G10) -> 0
A11: 4. | H11: =SUM(D11:G11) -> 0
A12: 5. | B12: Totals | D12: =SUM(D8:D11) -> 0 | E12: =SUM(E8:E11) -> 0 | F12: =SUM(F8:F11) -> 0 | G12: =SUM(G8:G11) -> 0 | H12: =SUM(H8:H11) -> 0
A13: Section B - Budget Categories
A14: 6. | B14: Object Class Categories | D14: Grant Program, Function or Activity | H14: Total (5)
D15: Budget period 1 | E15: Budget period 2 | F15: Budget period 3 | G15: (4)
B16: a. Personnel | D16: ='Instructions and Summary'!B11 -> 0 | E16: ='Instructions and Summary'!C11 -> 0 | F16: ='Instructions and Summary'!D11 -> 0 | H16: =SUM(D16:G16) -> 0
B17: b. Fringe Benefits | D17: ='Instructions and Summary'!B12 -> 0 | E17: ='Instructions and Summary'!C12 -> 0 | F17: ='Instructions and Summary'!D12 -> 0 | H17: 0
B18: c. Travel | D18: ='Instructions and Summary'!B13 -> 0 | E18: ='Instructions and Summary'!C13 -> 0 | F18: ='Instructions and Summary'!D13 -> 0 | H18: 0
B19: d. Equipment | D19: ='Instructions and Summary'!B14 -> 0 | E19: ='Instructions and Summary'!C14 -> 0 | F19: ='Instructions and Summary'!D14 -> 0 | H19: 0
B20: e. Supplies | D20: ='Instructions and Summary'!B15 -> 0 | E20: ='Instructions and Summary'!C15 -> 0 | F20: ='Instructions and Summary'!D15 -> 0 | H20: 0
B21: f. Contractual | D21: ='Instructions and Summary'!B20 -> 0 | E21: ='Instructions and Summary'!C20 -> 0 | F21: ='Instructions and Summary'!D20 -> 0 | H21: 0
B22: g. Construction | D22: ='Instructions and Summary'!B21 -> 0 | E22: ='Instructions and Summary'!C21 -> 0 | F22: ='Instructions and Summary'!D21 -> 0 | H22: 0
B23: h. Other | D23: ='Instructions and Summary'!B22 -> 0 | E23: ='Instructions and Summary'!C22 -> 0 | F23: ='Instructions and Summary'!D22 -> 0 | H23: 0
B24: i. Total Direct Charges (sum of 6a-6h) | D24: =SUM(D16:D23) -> 0 | E24: =SUM(E16:E23) -> 0 | F24: =SUM(F16:F23) -> 0 | G24: =SUM(G16:G23) -> 0 | H24: 0
B25: j. Indirect Charges | D25: ='Instructions and Summary'!B23 -> 0 | E25: ='Instructions and Summary'!C23 -> 0 | F25: ='Instructions and Summary'!D23 -> 0 | H25: 0
B26: k. Totals (sum of 6i-6j) | D26: =SUM(D24:D25) -> 0 | E26: =SUM(E24:E25) -> 0 | F26: =SUM(F24:F25) -> 0 | G26: =SUM(G24:G25) -> 0 | H26: =SUM(H24:H25) -> 0
A28: 7. | B28: Program Income | H28: =SUM(D28:G28) -> 0
H30: SF-424A (Rev. 4-92)
A31: Previous Edition Usable | G31: Prescribed by OMB Circular A-102
A32: Authorized for Local Reproduction
A34: Section C - Non-Federal Resources
B35: (a) Grant Program | E35: (b) Applicant | F35: (c ) State | G35: (d) Other Sources | H35: (e) Totals
A36: 8. | B36: Budget period 1 | H36: =SUM(E36:G36) -> 0
A37: 9. | B37: Budget period 2 | H37: =SUM(E37:G37) -> 0
A38: 10. | B38: Budget period 3 | H38: =SUM(E38:G38) -> 0
A39: 11. | H39: =SUM(E39:G39) -> 0
A40: 12. | B40: Total (sum of lines 8 - 11) | E40: =SUM(E36:E39) -> 0 | F40: =SUM(F36:F39) -> 0 | G40: =SUM(G36:G39) -> 0 | H40: =SUM(H36:H39) -> 0
A41: Section D - Forecasted Cash Needs
D42: Total for 1st Year | E42: 1st Quarter | F42: 2nd Quarter | G42: 3rd Quarter | H42: 4th quarter
A43: 13. | B43: Federal | D43: =SUM(E43:H43) -> 0
A44: 14. | B44: Non-Federal | D44: =SUM(E44:H44) -> 0
A45: 15. | B45: Total (sum of lines 13 and 14) | D45: =SUM(D43:D44) -> 0 | E45: =SUM(E43:E44) -> 0 | F45: =SUM(F43:F44) -> 0 | G45: =SUM(G43:G44) -> 0 | H45: =SUM(H43:H44) -> 0
A46: Section E - Budget Estimates of Federal Funds Needed for Balance of the Project
A47: (a) Grant Program | E47: Future Funding Periods (Years)
E48: Budget period 1 | F48: Budget period 2 | G48: Budget period 3
A49: 16.
A50: 17.
A51: 18.
A52: 19.
A53: 20. | B53: Total (sum of lines 16-19) | E53: =SUM(E49:E52) -> 0 | F53: =SUM(F49:F52) -> 0 | G53: =SUM(G49:G52) -> 0 | H53: =SUM(H49:H52) -> 0
A54: Section F - Other Budget Information
A55: 21. Direct Charges | E55: 22. Indirect Charges
A57: 23. Remarks
H61: SF-424A (Rev. 4-92)
A62: Previous Edition Usable | H62: Prescribed by OMB Circular A-102
C63: Authorized for Local Reproduction

Sheet Sheet1
